[Event "NJSK 2018 Jeugd A"]
[Site "Assen, Netherlands"]
[Date "2018.04.30"]
[Round "2.8"]
[White "Bueno, Mark"]
[Black "Van der Werf, Joel"]
[Result "0-1"]
[TimeControl "40/90m+30m+30sec/move"]
[WhiteElo "1999"]
[BlackElo "1842"]

1. e4 {[%clk 01:30:59]} e5 {[%clk 01:30:56]} {[%emt 00:00:05]} 2. Nf3 {[%clk
01:31:26]} {[%emt 00:00:03]} Nc6 {[%clk 01:31:23]} {[%emt 00:00:03]} 3. Bb5
{[%clk 01:31:52]} {[%emt 00:00:04]} a6 {[%clk 01:31:50]} {[%emt 00:00:03]} 4.
Ba4 {[%clk 01:32:18]} {[%emt 00:00:05]} Nf6 {[%clk 01:32:15]} {[%emt 00:00:03]}
5. O-O {[%clk 01:32:43]} {[%emt 00:00:05]} Be7 {[%clk 01:32:42]} {[%emt
00:00:03]} 6. Re1 {[%clk 01:33:06]} {[%emt 00:00:09]} b5 {[%clk 01:33:07]}
{[%emt 00:00:04]} 7. Bb3 {[%clk 01:33:32]} {[%emt 00:00:03]} d6 {[%clk
01:33:34]} {[%emt 00:00:03]} 8. c3 {[%clk 01:33:56]} {[%emt 00:00:07]} O-O
{[%clk 01:33:59]} {[%emt 00:00:05]} 9. h3 {[%clk 01:34:23]} {[%emt 00:00:01]}
Na5 {[%clk 01:34:25]} {[%emt 00:00:05]} 10. Bc2 {[%clk 01:34:50]} {[%emt
00:00:04]} c5 {[%clk 01:34:51]} {[%emt 00:00:04]} 11. d4 {[%clk 01:35:16]}
{[%emt 00:00:04]} Nd7 {[%clk 01:35:18]} {[%emt 00:00:03]} 12. d5 {[%clk
01:33:28]} {[%emt 00:02:17]} Nb6 {[%clk 01:35:33]} {[%emt 00:00:15]} 13. b3
{[%clk 01:32:52]} {[%emt 00:01:07]} c4 {[%clk 01:27:27]} {[%emt 00:08:36]} 14.
b4 {[%clk 01:32:47]} {[%emt 00:00:34]} Nb7 {[%clk 01:27:52]} {[%emt 00:00:05]}
15. Nbd2 {[%clk 01:25:04]} {[%emt 00:08:13]} a5 {[%clk 01:25:02]} {[%emt
00:03:20]} 16. Nf1 {[%clk 01:22:58]} {[%emt 00:02:35]} axb4 {[%clk 01:20:47]}
{[%emt 00:04:46]} 17. cxb4 {[%clk 01:23:21]} {[%emt 00:00:07]} Na4 {[%clk
01:13:59]} {[%emt 00:07:18]} 18. Re3 {[%clk 01:16:30]} {[%emt 00:07:20]} Bd7
{[%clk 01:09:06]} {[%emt 00:05:23]} 19. Ng3 {[%clk 01:16:04]} {[%emt 00:00:57]}
Qc7 {[%clk 00:57:49]} {[%emt 00:11:47]} 20. Nf5 {[%clk 01:14:55]} {[%emt
00:01:38]} Bf6 {[%clk 00:47:33]} {[%emt 00:10:47]} 21. g4 {[%clk 00:42:30]}
{[%emt 00:40:04]} g6 {[%clk 00:41:44]} {[%emt 00:06:19]} 22. g5 {[%clk
00:32:10]} {[%emt 00:10:50]} Bd8 {[%clk 00:21:17]} {[%emt 00:20:57]} 23. Nh2
{[%clk 00:16:55]} {[%emt 00:15:45]} Kh8 {[%clk 00:07:32]} {[%emt 00:14:15]} 24.
Rg3 {[%clk 00:15:16]} {[%emt 00:02:08]} f6 {[%clk 00:05:11]} {[%emt 00:02:52]}
25. Nh4 {[%clk 00:06:31]} {[%emt 00:09:15]} fxg5 {[%clk 00:04:06]} {[%emt
00:01:35]} 26. N4f3 {[%clk 00:06:47]} {[%emt 00:00:14]} h6 {[%clk 00:02:35]}
{[%emt 00:02:01]} 27. h4 {[%clk 00:03:25]} {[%emt 00:03:51]} Kg7 {[%clk
00:02:07]} {[%emt 00:00:59]} 28. hxg5 {[%clk 00:01:53]} {[%emt 00:02:02]} h5
{[%clk 00:02:35]} {[%emt 00:00:02]} 29. Nh4 {[%clk 00:01:36]} {[%emt 00:00:46]}
Qc8 {[%clk 00:01:26]} {[%emt 00:01:39]} 30. f4 {[%clk 00:01:36]} {[%emt
00:00:30]} exf4 {[%clk 00:00:51]} {[%emt 00:01:05]} 31. Qd4+ {[%clk 00:02:00]}
{[%emt 00:00:06]} Kh7 {[%clk 00:01:18]} {[%emt 00:00:03]} 32. Rg2 {[%clk
00:00:55]} {[%emt 00:01:36]} Bb6 {[%clk 00:01:44]} {[%emt 00:00:04]} 0-1

[Event "NJSK 2018 Jeugd A"]
[Site "Assen, Netherlands"]
[Date "2018.04.30"]
[Round "2.9"]
[White "Gijsen, William"]
[Black "Bekedam, Tyro"]
[Result "0-1"]
[TimeControl "40/90m+30m+30sec/move"]
[WhiteElo "1825"]
[BlackElo "1955"]

1. e4 {[%clk 01:30:57]} {[%emt 00:00:02]} c5 {[%clk 01:30:51]} {[%emt
00:00:10]} 2. Nc3 {[%clk 01:31:21]} {[%emt 00:00:06]} Nc6 {[%clk 01:30:55]}
{[%emt 00:00:26]} 3. f4 {[%clk 01:31:45]} {[%emt 00:00:06]} g6 {[%clk
01:27:32]} {[%emt 00:03:53]} 4. Nf3 {[%clk 01:32:08]} {[%emt 00:00:07]} Bg7
{[%clk 01:27:42]} {[%emt 00:00:19]} 5. Bc4 {[%clk 01:27:41]} {[%emt 00:04:58]}
e6 {[%clk 01:25:15]} {[%emt 00:02:57]} 6. O-O {[%clk 01:24:06]} {[%emt
00:04:05]} Nge7 {[%clk 01:24:51]} {[%emt 00:00:53]} 7. d3 {[%clk 01:23:02]}
{[%emt 00:01:35]} O-O {[%clk 01:24:06]} {[%emt 00:01:14]} 8. Qe1 {[%clk
01:12:29]} {[%emt 00:11:03]} b6 {[%clk 01:14:29]} {[%emt 00:10:08]} 9. Qh4
{[%clk 01:08:51]} {[%emt 00:04:08]} Nd4 {[%clk 01:10:26]} {[%emt 00:04:33]} 10.
Bb3 {[%clk 01:00:55]} {[%emt 00:08:25]} d5 {[%clk 01:05:58]} {[%emt 00:04:58]}
11. Nd1 {[%clk 00:51:04]} {[%emt 00:10:22]} dxe4 {[%clk 00:51:25]} {[%emt
00:15:02]} 12. dxe4 {[%clk 00:45:14]} {[%emt 00:06:20]} Nxf3+ {[%clk 00:50:41]}
{[%emt 00:01:15]} 13. gxf3 {[%clk 00:45:13]} {[%emt 00:00:31]} Ba6 {[%clk
00:50:38]} {[%emt 00:00:33]} 14. c4 {[%clk 00:39:46]} {[%emt 00:05:57]} Nc6
{[%clk 00:49:47]} {[%emt 00:01:21]} 15. Qh3 {[%clk 00:38:41]} {[%emt 00:01:36]}
Qd3 {[%clk 00:34:20]} {[%emt 00:15:55]} 16. Nf2 {[%clk 00:37:14]} {[%emt
00:01:58]} Qe2 {[%clk 00:33:27]} {[%emt 00:01:23]} 17. Ng4 {[%clk 00:32:18]}
{[%emt 00:05:26]} Bxc4 {[%clk 00:28:57]} {[%emt 00:05:00]} 18. Bxc4 {[%clk
00:31:58]} {[%emt 00:00:50]} Qxc4 {[%clk 00:29:20]} {[%emt 00:00:06]} 19. f5
{[%clk 00:30:04]} {[%emt 00:02:24]} exf5 {[%clk 00:22:29]} {[%emt 00:07:21]} 20.
exf5 {[%clk 00:29:51]} {[%emt 00:00:43]} gxf5 {[%clk 00:20:55]} {[%emt
00:02:05]} 21. Nh6+ {[%clk 00:30:05]} {[%emt 00:00:16]} Kh8 {[%clk 00:20:57]}
{[%emt 00:00:27]} 22. Kh1 {[%clk 00:28:16]} {[%emt 00:02:19]} Ne5 {[%clk
00:14:20]} {[%emt 00:07:08]} 23. Bd2 {[%clk 00:24:01]} {[%emt 00:04:44]} Nd3
{[%clk 00:11:59]} {[%emt 00:02:51]} 24. Qxf5 {[%clk 00:17:34]} {[%emt
00:06:57]} Rad8 {[%clk 00:10:59]} {[%emt 00:01:29]} 25. Bg5 {[%clk 00:15:28]}
{[%emt 00:02:37]} f6 {[%clk 00:09:56]} {[%emt 00:01:34]} 26. Be3 {[%clk
00:14:07]} {[%emt 00:01:51]} Qd5 {[%clk 00:09:27]} {[%emt 00:00:59]} 27. Qh3
{[%clk 00:12:48]} {[%emt 00:01:48]} f5 {[%clk 00:08:22]} {[%emt 00:01:36]} 28.
Rad1 {[%clk 00:10:26]} {[%emt 00:02:52]} Qe6 {[%clk 00:06:56]} {[%emt
00:01:56]} 29. Bg5 {[%clk 00:08:07]} {[%emt 00:02:49]} Nf2 {[%clk 00:06:52]}
{[%emt 00:00:34]} 30. Rde1 {[%clk 00:05:57]} {[%emt 00:02:40]} 0-1

[Event "NJSK 2018 Jeugd A"]
[Site "Assen, Netherlands"]
[Date "2018.05.01"]
[Round "3.1"]
[White "Kokje, Joris"]
[Black "Warmerdam, Max"]
[Result "1/2-1/2"]
[TimeControl "40/90m+30m+30sec/move"]
[WhiteElo "2265"]
[BlackElo "2378"]

1. d4 {[%clk 01:30:58]} {[%emt 00:00:01]} Nf6 {[%clk 01:30:56]} {[%emt
00:00:04]} 2. c4 {[%clk 01:31:23]} {[%emt 00:00:05]} e6 {[%clk 01:31:23]}
{[%emt 00:00:03]} 3. Nf3 {[%clk 01:31:30]} {[%emt 00:00:23]} c5 {[%clk
01:31:49]} {[%emt 00:00:05]} 4. g3 {[%clk 01:31:04]} {[%emt 00:00:55]} cxd4
{[%clk 01:32:14]} {[%emt 00:00:05]} 5. Nxd4 {[%clk 01:31:27]} {[%emt 00:00:07]}
d5 {[%clk 01:32:40]} {[%emt 00:00:04]} 6. Bg2 {[%clk 01:31:42]} {[%emt
00:00:15]} e5 {[%clk 01:33:05]} {[%emt 00:00:05]} 7. Nb3 {[%clk 01:32:06]}
{[%emt 00:00:06]} d4 {[%clk 01:33:08]} {[%emt 00:00:27]} 8. O-O {[%clk
01:32:09]} {[%emt 00:00:26]} Nc6 {[%clk 01:33:10]} {[%emt 00:00:28]} 9. f4
{[%clk 01:31:58]} {[%emt 00:00:42]} e4 {[%clk 01:33:18]} {[%emt 00:00:22]} 10.
f5 {[%clk 01:32:22]} {[%emt 00:00:06]} g6 {[%clk 01:33:19]} {[%emt 00:00:29]}
11. Bg5 {[%clk 01:26:45]} {[%emt 00:06:07]} Be7 {[%clk 01:21:15]} {[%emt
00:12:34]} 12. fxg6 {[%clk 01:11:33]} {[%emt 00:15:42]} hxg6 {[%clk 01:20:01]}
{[%emt 00:01:45]} 13. Bxf6 {[%clk 01:11:03]} {[%emt 00:01:00]} Bxf6 {[%clk
01:20:26]} {[%emt 00:00:05]} 14. N1d2 {[%clk 01:09:19]} {[%emt 00:02:13]} e3
{[%clk 01:08:00]} {[%emt 00:12:55]} 15. Ne4 {[%clk 01:03:06]} {[%emt 00:06:44]}
Be5 {[%clk 01:03:28]} {[%emt 00:05:02]} 16. c5 {[%clk 00:51:14]} {[%emt
00:12:22]} O-O {[%clk 00:43:22]} {[%emt 00:20:36]} 17. Nd6 {[%clk 00:46:56]}
{[%emt 00:04:48]} Bxd6 {[%clk 00:38:48]} {[%emt 00:05:04]} 18. cxd6 {[%clk
00:47:00]} {[%emt 00:00:26]} Qxd6 {[%clk 00:39:00]} {[%emt 00:00:17]} 19. Bxc6
{[%clk 00:44:26]} {[%emt 00:03:04]} Qxc6 {[%clk 00:38:59]} {[%emt 00:00:32]} 20.
Nxd4 {[%clk 00:40:49]} {[%emt 00:04:07]} Qb6 {[%clk 00:38:33]} {[%emt
00:00:55]} 21. Qd3 {[%clk 00:34:07]} {[%emt 00:07:13]} Bh3 {[%clk 00:38:16]}
{[%emt 00:00:47]} 22. Rf4 {[%clk 00:32:07]} {[%emt 00:02:29]} Qxb2 {[%clk
00:38:30]} {[%emt 00:00:16]} 23. Rd1 {[%clk 00:27:14]} {[%emt 00:05:24]} Rac8
{[%clk 00:35:03]} {[%emt 00:03:57]} 24. Qxe3 {[%clk 00:22:46]} {[%emt
00:04:57]} Rfe8 {[%clk 00:24:28]} {[%emt 00:11:05]} 25. Qf2 {[%clk 00:20:39]}
{[%emt 00:02:37]} Rc1 {[%clk 00:23:58]} {[%emt 00:01:01]} 26. Qe1 {[%clk
00:20:01]} {[%emt 00:01:06]} Rec8 {[%clk 00:24:11]} {[%emt 00:00:18]} 27. Nb3
{[%clk 00:19:39]} {[%emt 00:00:53]} Rxd1 {[%clk 00:16:52]} {[%emt 00:07:49]} 28.
Qxd1 {[%clk 00:20:01]} {[%emt 00:00:08]} Re8 {[%clk 00:16:51]} {[%emt
00:00:30]} 29. Kf2 {[%clk 00:16:15]} {[%emt 00:04:16]} Qxa2 {[%clk 00:15:59]}
{[%emt 00:01:22]} 30. g4 {[%clk 00:14:37]} {[%emt 00:02:08]} Qb2 {[%clk
00:13:43]} {[%emt 00:02:47]} 31. Nd4 {[%clk 00:10:43]} {[%emt 00:04:24]} Qb6
{[%clk 00:04:27]} {[%emt 00:09:46]} 32. Qc1 {[%clk 00:07:10]} {[%emt 00:04:03]}
Qd6 {[%clk 00:03:26]} {[%emt 00:01:30]} 33. Nf3 {[%clk 00:07:31]} {[%emt
00:00:09]} b5 {[%clk 00:02:03]} {[%emt 00:01:53]} 34. Kg3 {[%clk 00:05:51]}
{[%emt 00:02:10]} Re4 {[%clk 00:01:54]} {[%emt 00:00:40]} 35. e3 {[%clk
00:06:11]} {[%emt 00:00:09]} Rxf4 {[%clk 00:02:00]} {[%emt 00:00:25]} 36. exf4
{[%clk 00:06:34]} {[%emt 00:00:06]} Qd3 {[%clk 00:01:57]} {[%emt 00:00:33]} 37.
Qc6 {[%clk 00:05:27]} {[%emt 00:01:37]} Bf1 {[%clk 00:01:48]} {[%emt 00:00:39]}
38. Qe8+ {[%clk 00:05:47]} {[%emt 00:00:11]} Kg7 {[%clk 00:02:14]} {[%emt
00:00:04]} 39. Qe5+ {[%clk 00:05:59]} {[%emt 00:00:18]} Kg8 {[%clk 00:02:36]}
{[%emt 00:00:07]} 40. Qe8+ {[%clk 00:06:25]} {[%emt 00:00:04]} Kg7 {[%clk
00:03:01]} {[%emt 00:00:05]} 41. Qe5+ {[%clk 00:05:17]} {[%emt 00:01:39]} Kg8
{[%clk 00:28:09]} {[%emt 00:05:21]} 1/2-1/2

[Event "NJSK 2018 Jeugd A"]
[Site "Assen, Netherlands"]
[Date "2018.05.01"]
[Round "3.2"]
[White "Van Baar, Esper"]
[Black "Jongste, David"]
[Result "1-0"]
[TimeControl "40/90m+30m+30sec/move"]
[WhiteElo "2237"]
[BlackElo "2092"]

1. e4 {[%clk 01:30:57]} {[%emt 00:00:02]} c5 {[%clk 01:30:16]} {[%emt
00:00:44]} 2. Nf3 {[%clk 01:31:18]} {[%emt 00:00:09]} e6 {[%clk 01:30:36]}
{[%emt 00:00:10]} 3. d4 {[%clk 01:31:36]} {[%emt 00:00:12]} cxd4 {[%clk
01:30:53]} {[%emt 00:00:13]} 4. Nxd4 {[%clk 01:30:11]} {[%emt 00:01:56]} a6
{[%clk 01:30:44]} {[%emt 00:00:39]} 5. Nc3 {[%clk 01:28:42]} {[%emt 00:01:59]}
Qc7 {[%clk 01:30:08]} {[%emt 00:01:05]} 6. Bd3 {[%clk 01:23:37]} {[%emt
00:05:35]} Nc6 {[%clk 01:27:02]} {[%emt 00:03:37]} 7. Be3 {[%clk 01:22:22]}
{[%emt 00:01:46]} Nf6 {[%clk 01:24:12]} {[%emt 00:03:18]} 8. O-O {[%clk
01:22:10]} {[%emt 00:00:42]} b5 {[%clk 01:24:10]} {[%emt 00:00:33]} 9. Qe2
{[%clk 01:20:37]} {[%emt 00:02:03]} Bb7 {[%clk 01:23:23]} {[%emt 00:01:16]} 10.
a3 {[%clk 01:20:20]} {[%emt 00:00:48]} Rc8 {[%clk 01:11:52]} {[%emt 00:12:01]}
11. f4 {[%clk 01:08:46]} {[%emt 00:12:03]} Nxd4 {[%clk 01:09:56]} {[%emt
00:02:25]} 12. Bxd4 {[%clk 01:09:11]} {[%emt 00:00:06]} Bc5 {[%clk 01:09:42]}
{[%emt 00:00:43]} 13. Bxc5 {[%clk 01:09:38]} {[%emt 00:00:03]} Qxc5+ {[%clk
01:10:01]} {[%emt 00:00:11]} 14. Kh1 {[%clk 01:10:06]} {[%emt 00:00:02]} d5
{[%clk 01:04:52]} {[%emt 00:05:39]} 15. exd5 {[%clk 01:04:11]} {[%emt
00:06:25]} Nxd5 {[%clk 01:04:52]} {[%emt 00:00:29]} 16. Nxd5 {[%clk 01:04:38]}
{[%emt 00:00:04]} Qxd5 {[%clk 00:53:31]} {[%emt 00:11:50]} 17. f5 {[%clk
01:00:06]} {[%emt 00:05:02]} e5 {[%clk 00:44:33]} {[%emt 00:09:29]} 18. Rad1
{[%clk 00:32:59]} {[%emt 00:27:37]} f6 {[%clk 00:31:36]} {[%emt 00:13:27]} 19.
Rf3 {[%clk 00:20:37]} {[%emt 00:12:52]} O-O {[%clk 00:23:53]} {[%emt 00:08:13]}
20. Re3 {[%clk 00:13:10]} {[%emt 00:07:56]} Rfd8 {[%emt 00:08:25]} 21. Ra1
{[%clk 00:12:08]} Qd4 {[%clk 00:15:34]} {[%emt 00:02:29]} 22. c3 {[%clk
00:11:55]} {[%emt 00:00:43]} Qd7 {[%clk 00:14:20]} {[%emt 00:01:43]} 23. h3
{[%clk 00:10:58]} {[%emt 00:01:28]} Rc5 {[%clk 00:11:39]} {[%emt 00:03:11]} 24.
Bc2 {[%clk 00:08:51]} {[%emt 00:02:37]} Qd2 {[%clk 00:10:16]} {[%emt 00:01:53]}
25. Rd1 {[%clk 00:08:21]} {[%emt 00:01:00]} Bxg2 {[%clk 00:06:15]} {[%emt
00:04:31]} 26. Kh2 {[%clk 00:07:45]} {[%emt 00:01:06]} Rcd5 {[%clk 00:03:58]}
{[%emt 00:02:47]} 27. Rxd2 {[%clk 00:03:40]} {[%emt 00:04:35]} Rxd2 {[%clk
00:04:22]} {[%emt 00:00:06]} 28. Bb3+ {[%clk 00:04:03]} {[%emt 00:00:07]} Kh8
{[%clk 00:04:38]} {[%emt 00:00:14]} 29. Qe1 {[%clk 00:03:13]} {[%emt 00:01:20]}
Bf3 {[%clk 00:04:20]} {[%emt 00:00:47]} 30. Kg3 {[%clk 00:02:49]} {[%emt
00:00:54]} e4 {[%clk 00:04:46]} {[%emt 00:00:05]} 31. c4 {[%clk 00:01:23]}
{[%emt 00:01:56]} g5 {[%clk 00:03:51]} {[%emt 00:01:24]} 32. fxg6 {[%clk
00:01:22]} {[%emt 00:00:32]} hxg6 {[%clk 00:04:17]} {[%emt 00:00:03]} 33. Kf4
{[%clk 00:00:49]} {[%emt 00:01:02]} Kg7 {[%clk 00:03:41]} {[%emt 00:01:06]} 34.
cxb5 {[%clk 00:00:32]} {[%emt 00:00:47]} axb5 {[%clk 00:03:13]} {[%emt
00:00:58]} 35. Rc3 {[%clk 00:00:33]} {[%emt 00:00:30]} Re8 {[%clk 00:01:43]}
{[%emt 00:02:00]} 36. Qxd2 {[%clk 00:00:35]} {[%emt 00:00:28]} Re5 {[%clk
00:01:48]} {[%emt 00:00:25]} 37. Rc7+ {[%clk 00:00:54]} {[%emt 00:00:10]} Kh6
{[%clk 00:02:11]} {[%emt 00:00:07]} 38. Qd8 {[%clk 00:00:32]} {[%emt 00:00:52]}
Rf5+ {[%clk 00:02:09]} {[%emt 00:00:32]} 39. Ke3 {[%clk 00:00:53]} 1-0

[Event "NJSK 2018 Jeugd A"]
[Site "Assen, Netherlands"]
[Date "2018.05.01"]
[Round "3.3"]
[White "Van Dael, Siem"]
[Black "Vrolijk, Liam"]
[Result "1/2-1/2"]
[TimeControl "40/90m+30m+30sec/move"]
[WhiteElo "2268"]
[BlackElo "2432"]

1. e4 {[%clk 01:30:57]} {[%emt 00:00:02]} e6 {[%clk 01:30:54]} {[%emt
00:00:06]} 2. d4 {[%clk 01:31:17]} {[%emt 00:00:10]} d5 {[%clk 01:31:18]}
{[%emt 00:00:06]} 3. Nc3 {[%clk 01:31:44]} {[%emt 00:00:03]} Nf6 {[%clk
01:31:42]} {[%emt 00:00:06]} 4. Bg5 {[%emt 00:00:07]} Bb4 {[%clk 01:32:07]}
{[%emt 00:00:04]} 5. e5 {[%clk 01:32:31]} {[%emt 00:00:07]} h6 {[%clk
01:32:32]} {[%emt 00:00:05]} 6. Be3 {[%clk 01:32:48]} {[%emt 00:00:13]} Ne4
{[%clk 01:32:54]} {[%emt 00:00:08]} 7. Qg4 {[%clk 01:32:41]} {[%emt 00:00:38]}
Kf8 {[%clk 01:32:33]} {[%emt 00:00:51]} 8. a3 {[%clk 01:21:43]} {[%emt
00:11:28]} Bxc3+ {[%clk 01:32:29]} {[%emt 00:00:34]} 9. bxc3 {[%clk 01:22:08]}
{[%emt 00:00:06]} Nxc3 {[%clk 01:32:22]} {[%emt 00:00:36]} 10. Bd3 {[%clk
01:22:31]} {[%emt 00:00:07]} Nc6 {[%clk 01:32:17]} {[%emt 00:00:36]} 11. Nf3
{[%clk 01:21:47]} {[%emt 00:01:14]} Na4 {[%clk 01:29:20]} {[%emt 00:03:27]} 12.
h4 {[%clk 01:18:19]} {[%emt 00:03:57]} Nb2 {[%clk 01:24:52]} {[%emt 00:04:58]}
13. h5 {[%clk 01:14:47]} {[%emt 00:04:02]} Nxd3+ {[%clk 01:15:09]} {[%emt
00:10:12]} 14. cxd3 {[%clk 01:15:12]} {[%emt 00:00:05]} Ne7 {[%clk 01:14:37]}
{[%emt 00:01:02]} 15. Qf4 {[%clk 01:15:08]} {[%emt 00:00:34]} b6 {[%clk
01:09:48]} {[%emt 00:05:20]} 16. Rh3 {[%clk 01:11:07]} {[%emt 00:04:30]} Ke8
{[%clk 00:59:44]} {[%emt 00:10:34]} 17. g4 {[%clk 01:07:33]} {[%emt 00:04:04]}
Ba6 {[%clk 00:53:29]} {[%emt 00:06:45]} 18. Rd1 {[%clk 01:04:43]} {[%emt
00:03:21]} Rc8 {[%clk 00:49:32]} {[%emt 00:04:26]} 19. Nh4 {[%clk 01:02:55]}
{[%emt 00:02:17]} Nc6 {[%clk 00:46:26]} {[%emt 00:03:37]} 20. Nf3 {[%clk
00:58:33]} {[%emt 00:04:52]} Ne7 {[%clk 00:45:55]} {[%emt 00:01:01]} 21. Nh4
{[%clk 00:57:51]} {[%emt 00:01:12]} Nc6 {[%clk 00:43:17]} {[%emt 00:03:07]} 22.
Nf3 {[%clk 00:58:13]} {[%emt 00:00:08]} Ne7 {[%clk 00:40:25]} {[%emt 00:03:21]}
1/2-1/2

[Event "NJSK 2018 Jeugd A"]
[Site "Assen, Netherlands"]
[Date "2018.05.01"]
[Round "3.4"]
[White "Schoppen, Casper"]
[Black "Bekedam, Tyro"]
[Result "1-0"]
[TimeControl "40/90m+30m+30sec/move"]
[WhiteElo "2396"]
[BlackElo "1955"]

1. d4 {[%clk 01:30:58]} {[%emt 00:00:02]} Nf6 {[%clk 01:30:49]} {[%emt
00:00:11]} 2. c4 {[%clk 01:31:13]} {[%emt 00:00:15]} e6 {[%clk 01:31:00]}
{[%emt 00:00:18]} 3. Nf3 {[%clk 01:31:37]} {[%emt 00:00:07]} d5 {[%clk
01:31:11]} {[%emt 00:00:18]} 4. Nc3 {[%clk 01:32:03]} {[%emt 00:00:04]} Bb4
{[%clk 01:31:03]} {[%emt 00:00:38]} 5. cxd5 {[%clk 01:31:25]} {[%emt 00:01:08]}
exd5 {[%clk 01:31:07]} {[%emt 00:00:25]} 6. Bg5 {[%clk 01:31:51]} {[%emt
00:00:04]} h6 {[%clk 01:29:06]} {[%emt 00:02:31]} 7. Bh4 {[%clk 01:32:18]}
{[%emt 00:00:04]} O-O {[%clk 01:27:00]} {[%emt 00:02:35]} 8. e3 {[%clk
01:32:19]} {[%emt 00:00:29]} c6 {[%clk 01:18:09]} {[%emt 00:09:21]} 9. Bd3
{[%clk 01:31:54]} {[%emt 00:00:54]} Nbd7 {[%clk 01:10:55]} {[%emt 00:07:45]} 10.
O-O {[%clk 01:31:51]} {[%emt 00:00:32]} Re8 {[%clk 01:05:32]} {[%emt 00:05:52]}
11. Qc2 {[%clk 01:31:19]} {[%emt 00:01:03]} Qa5 {[%clk 00:54:13]} {[%emt
00:11:49]} 12. Nd2 {[%clk 01:26:16]} {[%emt 00:05:32]} c5 {[%clk 00:48:29]}
{[%emt 00:06:14]} 13. Nb3 {[%clk 01:23:03]} {[%emt 00:03:57]} Qc7 {[%clk
00:44:57]} {[%emt 00:03:47]} 14. dxc5 {[%clk 01:22:15]} {[%emt 00:01:19]} Bxc5
{[%clk 00:40:22]} {[%emt 00:05:05]} 15. Bxf6 {[%clk 01:21:36]} {[%emt
00:01:09]} gxf6 {[%clk 00:40:05]} {[%emt 00:00:48]} 16. Nxd5 {[%clk 01:18:20]}
{[%emt 00:03:46]} Qd6 {[%clk 00:39:18]} {[%emt 00:01:17]} 17. Rfd1 {[%clk
01:17:37]} {[%emt 00:01:13]} Kg7 {[%clk 00:34:15]} {[%emt 00:05:32]} 18. Bb5
{[%clk 01:16:56]} {[%emt 00:01:12]} Re5 {[%clk 00:24:21]} {[%emt 00:10:24]} 19.
Bxd7 {[%clk 01:13:46]} {[%emt 00:03:40]} Rxd5 {[%clk 00:22:29]} {[%emt
00:02:21]} 20. Rxd5 {[%clk 01:13:25]} {[%emt 00:00:51]} Qxd5 {[%clk 00:22:54]}
{[%emt 00:00:05]} 21. Rd1 {[%clk 01:13:38]} {[%emt 00:00:18]} 1-0

[Event "NJSK 2018 Jeugd A"]
[Site "Assen, Netherlands"]
[Date "2018.05.01"]
[Round "3.5"]
[White "Nguyen, Kevin"]
[Black "Reichardt, Robin"]
[Result "0-1"]
[TimeControl "40/90m+30m+30sec/move"]
[WhiteElo "2122"]
[BlackElo "1936"]

1. Nf3 {[%clk 01:30:54]} {[%emt 00:00:05]} d5 {[%clk 01:30:43]} {[%emt
00:00:17]} 2. g3 {[%clk 01:31:21]} {[%emt 00:00:04]} Nf6 {[%clk 01:31:01]}
{[%emt 00:00:09]} 3. Bg2 {[%clk 01:31:47]} {[%emt 00:00:06]} c6 {[%clk
01:31:10]} {[%emt 00:00:21]} 4. O-O {[%clk 01:30:13]} {[%emt 00:02:04]} Bf5
{[%clk 01:30:54]} {[%emt 00:00:45]} 5. d3 {[%clk 01:28:07]} {[%emt 00:02:36]}
e6 {[%clk 01:29:37]} {[%emt 00:01:47]} 6. c3 {[%clk 01:27:29]} {[%emt
00:01:08]} Nbd7 {[%clk 01:22:57]} {[%emt 00:07:11]} 7. Nbd2 {[%clk 01:27:22]}
{[%emt 00:00:37]} h6 {[%clk 01:21:12]} {[%emt 00:02:15]} 8. Qc2 {[%clk
01:26:01]} {[%emt 00:01:51]} Be7 {[%clk 01:18:17]} {[%emt 00:03:25]} 9. a3
{[%clk 01:25:12]} {[%emt 00:01:19]} a5 {[%clk 01:15:59]} {[%emt 00:02:48]} 10.
b3 {[%clk 01:25:03]} {[%emt 00:00:39]} O-O {[%clk 01:14:07]} {[%emt 00:02:22]}
11. Bb2 {[%clk 01:24:33]} {[%emt 00:01:01]} Bh7 {[%clk 01:08:49]} {[%emt
00:05:47]} 12. Rac1 {[%clk 01:22:42]} {[%emt 00:02:20]} b5 {[%clk 01:05:46]}
{[%emt 00:03:34]} 13. Qb1 {[%clk 01:19:28]} {[%emt 00:03:44]} Qb6 {[%clk
01:01:37]} {[%emt 00:04:39]} 14. Qa1 {[%clk 01:18:07]} {[%emt 00:01:52]} Rab8
{[%clk 00:58:17]} {[%emt 00:03:49]} 15. Rb1 {[%clk 01:11:27]} {[%emt 00:07:10]}
e5 {[%clk 00:49:27]} {[%emt 00:09:20]} 16. Ne1 {[%clk 00:45:24]} {[%emt
00:26:33]} e4 {[%clk 00:45:16]} {[%emt 00:04:41]} 17. dxe4 {[%clk 00:44:37]}
{[%emt 00:01:17]} Nxe4 {[%clk 00:40:44]} {[%emt 00:05:02]} 18. Nxe4 {[%clk
00:42:21]} {[%emt 00:02:46]} dxe4 {[%clk 00:40:56]} {[%emt 00:00:17]} 19. Bc1
{[%clk 00:42:19]} {[%emt 00:00:32]} Bf6 {[%clk 00:32:34]} {[%emt 00:08:52]} 20.
Be3 {[%clk 00:41:39]} {[%emt 00:01:10]} c5 {[%clk 00:29:39]} {[%emt 00:03:26]}
21. Rd1 {[%clk 00:40:02]} {[%emt 00:02:07]} Qe6 {[%clk 00:27:45]} {[%emt
00:02:23]} 22. Qc1 {[%clk 00:34:39]} {[%emt 00:05:54]} Rfd8 {[%clk 00:26:41]}
{[%emt 00:01:33]} 23. Qc2 {[%clk 00:19:54]} {[%emt 00:15:15]} Bg5 {[%clk
00:22:32]} {[%emt 00:04:39]} 24. Bxg5 {[%clk 00:16:58]} {[%emt 00:03:26]} hxg5
{[%clk 00:23:00]} {[%emt 00:00:02]} 25. Qb2 {[%clk 00:13:48]} {[%emt 00:03:41]}
Nf6 {[%clk 00:19:44]} {[%emt 00:03:46]} 26. Rxd8+ {[%clk 00:13:51]} {[%emt
00:00:27]} Rxd8 {[%clk 00:20:07]} {[%emt 00:00:07]} 27. b4 {[%clk 00:14:04]}
{[%emt 00:00:18]} e3 {[%clk 00:17:31]} {[%emt 00:03:05]} 28. Nf3 {[%clk
00:10:22]} {[%emt 00:04:11]} exf2+ {[%clk 00:17:47]} {[%emt 00:00:14]} 29. Kh1
{[%clk 00:06:53]} {[%emt 00:04:00]} Ne4 {[%clk 00:16:50]} {[%emt 00:01:27]} 30.
bxc5 {[%clk 00:04:22]} {[%emt 00:03:00]} Qh6 {[%clk 00:15:08]} {[%emt
00:02:11]} 0-1